Cogmind - Beta 16 @@@ ROGUE MODE // 2025.11.22 @ 16:55:44 Player: Lazz Result: Self-destructed Performance ------------- Evolutions (2) 1000 Regions Visited (4) 800 Robots Destroyed (10) 50 Value Destroyed (417) 417 Prototype IDs (0) 0 Alien Tech Used (0) 0 Bonus (416) 416 TOTAL SCORE: 2683 Bonus ------- Follower Combat Kills 216 Entered Garrisons 200 Cogmind --------- Core Integrity 199/550 Matter 300/300 Energy 100/100 System Corruption 0% Temperature Cool (0) Movement Core (50) Location -8/Garrison Parts ------- > --- POWER (1) -------- (None) > --- PROPULSION (2) --- (None) > --- UTILITY (5) ------ (None) > --- WEAPON (3) ------- (None) > --- INVENTORY (5) ---- Light Ion Engine Light Ion Engine Subdweller Power Source Light Nuclear Core Relay Coupler [Sentry] (23) Peak State ------------ > --- POWER ------------ Light Nuclear Core > --- PROPULSION ------- Wheel Subdweller Monowheel > --- UTILITY ---------- Small Storage Unit Improved Terrain Scanner Scrap Shield > --- WEAPON ----------- Shock Rifle Light Assault Rifle Light Assault Rifle > --- INVENTORY -------- Light Ion Engine Light Ion Engine Subdweller Power Source Light Nuclear Core Wheel Compact Wheel Subdweller Monowheel Remote Datajack [Rating: 20] Favorites ----------- Power Light Ion Engine Engine Light Ion Engine Power Core Light Nuclear Core Propulsion Light Treads Treads Light Treads Wheel Subdweller Monowheel Utility Small Storage Unit Device Improved Terrain Scanner Storage Small Storage Unit Protection Scrap Shield Weapon EM Pulse Gun Energy Gun EM Pulse Gun Ballistic Gun Light Assault Rifle Build | -11 -10 -10 -8 -8 ------- Run | Yrd Mat Sub Mat Gar Slots Evolved 4 | . . . 4 . Power . | . . . . . Propulsion . | . . . . . Utility 3 | . . . 3 . Weapon 1 | . . . 1 . Parts Attached 19 | 7 . 3 2 7 Power 3 | 1 . . . 2 Engine 2 | 1 . . . 1 Core 1 | . . . . 1 Reactor . | . . . . . Propulsion 7 | 2 . 2 1 2 Treads 2 | 2 . . . . Leg . | . . . . . Wheel 5 | . . 2 1 2 Hover . | . . . . . Flight . | . . . . . Utility 3 | 2 . . 1 . Device 1 | 1 . . . . Storage 1 | 1 . . . . Processor . | . . . . . Hackware . | . . . . . Protection 1 | . . . 1 . Artifact . | . . . . . Weapon 6 | 2 . 1 . 3 Energy Gun 4 | 2 . 1 . 1 Energy Cannon . | . . . . . Ballistic Gun 2 | . . . . 2 Ballistic Cannon . | . . . . . Launcher . | . . . . . Special Weapon . | . . . . . Impact Weapon . | . . . . . Slashing Weapon . | . . . . . Piercing Weapon . | . . . . . Special Melee Weapon . | . . . . . Unidentified Prototypes . | . . . . . Parts Lost 14 | . . 4 . 10 Power 2 | . . 1 . 1 Propulsion 5 | . . 1 . 4 Utility 2 | . . . . 2 Weapon 5 | . . 2 . 3 Highest Loss Streak 9 | . . 3 . 9 To Critical Strikes . | . . . . . Average Backups 5 | 4 6 5 4 6 Power 1 | . 1 1 1 3 Propulsion 3 | 2 4 3 3 2 Utility . | . . . . . Weapon . | . 1 . . . Tool/Special . | . . . . . Unused Backups 9 | . . 3 . 6 Power 5 | . . 1 . 4 Propulsion 1 | . . 1 . . Utility 2 | . . 1 . 1 Weapon . | . . . . . Tool/Special 1 | . . . . 1 Average Slot Usage (%) 78 | . 100 85 54 58 Engine 6 | . 14 7 . 2 Core 1 | . . . . 4 Treads 13 | . 28 17 . . Wheel 10 | . . 10 18 15 Device 11 | . 14 14 9 7 Storage 12 | . 14 14 9 8 Protection 1 | . . . 9 5 Energy Gun 17 | . 28 20 9 7 Ballistic Gun 2 | . . . . 8 Peak Build Rating 20 | 9 9 10 13 20 Average Rating 10 | 5 9 9 12 14 On Entrance 8 | . 9 9 10 13 Avg Prop Armor Cover (%) 8 | . . 8 . . Naked Turns 16 | . . . . 16 Heaviest Build 34 | 12 12 13 25 34 Greatest Support 40 | 40 40 40 30 30 Greatest Overweight (x) 6 | 1 . . . 6 Average Overweight (x) . | . . . . . Largest Inventory Capacity 8 | 8 8 8 8 8 Average Capacity 7 | 7 8 8 8 7 Most Carried 8 | 6 6 8 6 8 Average Carried 6 | 4 6 6 5 6 Final Capacity 8 | 8 8 8 8 5 Final Carried 8 | 6 6 8 6 5 Class Distribution -------------------- 86% | Mutant 6% | Scavenger-Skirmisher 5% | Scavenger-Tank Dominant Class ---------------- Mutant | -10/Materials Mutant | -10/Subcaves Mutant | -8/Materials Mutant | -8/Garrison Resources | -11 -10 -10 -8 -8 ----------- Run | Yrd Mat Sub Mat Gar Matter Collected 396 | 270 . 35 . 91 Remotely . | . . . . . Salvage Created 397 | 151 . 163 . 83 Parts 20 | 8 . 8 . 4 Haulers Intercepted . | . . . . . Recyclers Shooed . | . . . . . Parts Field Recycled . | . . . . . Retrieved Matter . | . . . . . Parts Self-Destructed 2 | . . 2 . . Prevented . | . . . . . Parts Restored . | . . . . . Kills | -11 -10 -10 -8 -8 ------- Run | Yrd Mat Sub Mat Gar Combat Hostiles Destroyed 6 | . . 3 . 3 Guns 6 | . . 3 . 3 Classes Destroyed 5 | 2 . 1 . 2 Tunneler 3 | 3 . . . . Recycler 1 | 1 . . . . Swarmer 2 | . . . . 2 Subdweller 3 | . . 3 . . Butcher 1 | . . . . 1 Best Kill Streak 3 | 3 . 1 . 2 Combat Bots Only 2 | . . 1 . 2 Max Kills in Single Turn 1 | 1 . 1 . 1 Gunslinging . | . . . . . Exploded . | . . . . . Melee . | . . . . . Uniques/NPCs Destroyed . | . . . . . Combat | -11 -10 -10 -8 -8 -------- Run | Yrd Mat Sub Mat Gar Hostile Shots Fired 150 | . . 43 . 107 Missed 28 | . . 7 . 21 Hits 122 | . . 36 . 86 Projectile 122 | . . 36 . 86 Critical Strikes 8 | . . 1 . 7 Damage Taken 1906 | . . 756 . 1150 Core 557 | . . 206 . 351 Absorbed by Shields 54 | . . . . 54 Core Remaining (%) 58 | 100 . 17 . . Volleys Fired 56 | 7 1 27 . 21 Largest 3 | 2 2 2 . 3 Hottest 90 | 80 80 80 . 90 Shots Fired 98 | 14 2 35 . 47 Gun 98 | 14 2 35 . 47 Cannon . | . . . . . Launcher . | . . . . . Special . | . . . . . Kinetic 26 | . . . . 26 Thermal 38 | 7 1 16 . 14 Explosive . | . . . . . Electromagnetic 34 | 7 1 19 . 7 Robot Hit Streak 9 | 5 . 9 . 9 Robot Miss Streak 3 | 1 2 3 . 3 Penetration Max . | . . . . . Secondary Targets . | . . . . . Shots Hit Robots 64 | 10 . 26 . 28 Core Hits 22 | 5 . 9 . 8 Critical Kills 1 | . . . . 1 Critical Parts Destroyed . | . . . . . Critical Strikes 1 | . . . . 1 Destroy 1 | . . . . 1 Melee Attacks . | . . . . . Impact . | . . . . . Slashing . | . . . . . Piercing . | . . . . . Sneak Attacks . | . . . . . Combat Hostiles . | . . . . . Follow-up Attacks . | . . . . . Damage Inflicted 640 | 126 . 286 . 228 Guns 637 | 123 . 286 . 228 Cannons . | . . . . . Explosions . | . . . . . Melee . | . . . . . Ramming 3 | 3 . . . . Kinetic 104 | . . . . 104 Thermal 286 | 53 . 135 . 98 Explosive . | . . . . . Electromagnetic 247 | 70 . 151 . 26 Impact . | . . . . . Slashing . | . . . . . Piercing . | . . . . . Highest Corruption . | . . . . . Average Corruption . | . . . . . Corruption Purged . | . . . . . Corruption Blocked . | . . . . . Overload Shots . | . . . . . Overflow Damage . | . . . . . Projectiles . | . . . . . Explosions . | . . . . . Melee . | . . . . . Knockbacks . | . . . . . Impact . | . . . . . Kinetic . | . . . . . Secondary . | . . . . . Self-Inflicted Damage . | . . . . . Shots . | . . . . . Rammed 1 | 1 . . . . Targets Rammed 1 | 1 . . . . Kicked . | . . . . . Crushed . | . . . . . Highest Temperature 132 | 90 18 . . 132 Average Temperature 42 | 45 12 . . 43 Received Heat Transfer 599 | . . 96 . 503 Siege Activations . | . . . . . Martial Activations . | . . . . . Shielding Activations . | . . . . . Robots Disrupted . | . . . . . Combat Hostiles . | . . . . . Robots Corrupted . | . . . . . Combat Hostiles . | . . . . . Parts Fried 3 | . . 2 . 1 Impact Corruptions . | . . . . . Robots Melted . | . . . . . Combat Hostiles . | . . . . . Parts Melted 1 | . . . . 1 Heat Transferred 650 | 125 . 300 . 225 Parts Sabotaged . | . . . . . Parts Stolen . | . . . . . Parts Stripped . | . . . . . Power Chain Reactions . | . . . . . Alert | -11 -10 -10 -8 -8 ------- Run | Yrd Mat Sub Mat Gar Maximum Alert Level 1 | . . . . 1 Low Security (%) 69 | 100 100 . 100 47 Level 1 30 | . . . . 52 Level 2 . | . . . . . Level 3 . | . . . . . Level 4 . | . . . . . Level 5 . | . . . . . High Security . | . . . . . Max Security . | . . . . . Peak Influence 297 | 10 . . . 297 Initial . | . . . . . Average 99 | 2 . . . 170 Influence Increases 392 | 20 . . . 372 Destroy 0b10 Robot/C 180 | . . . . 180 Destroy 0b10 Robot/NC 20 | 20 . . . . Allied During Kill 32 | . . . . 32 Anti-Garrison Action 100 | . . . . 100 Lose Combat Pursuer 60 | . . . . 60 Influence Decreases 140 | 20 . . . 120 Time Decay 20 | 20 . . . . Lost Part 100 | . . . . 100 Lost Ally 20 | . . . . 20 Squads Dispatched 1 | . 1 . . . Investigation . | . . . . . Extermination . | . . . . . Reinforcement 1 | . 1 . . . Assault . | . . . . . Garrison . | . . . . . Intercept . | . . . . . Searches Triggered . | . . . . . Construction Impeded . | . . . . . Haulers Reinforced . | . . . . . Active Scanning Responses . | . . . . . Cargo Convoy Interrupts . | . . . . . Stealth | -11 -10 -10 -8 -8 --------- Run | Yrd Mat Sub Mat Gar Distress Signals . | . . . . . Communications Jammed . | . . . . . Distress Signals . | . . . . . Times Spotted 26 | . 1 4 . 21 Peak Tracking Total 10 | . 1 1 . 10 Tactical Retreats 3 | . . . . 3 Traps | -11 -10 -10 -8 -8 ------- Run | Yrd Mat Sub Mat Gar Traps Triggered 3 | . . . . 3 Indirectly . | . . . . . Trap Hack Attempts . | . . . . . Triggered . | . . . . . Disarmed . | . . . . . Reprogrammed . | . . . . . Reused . | . . . . . Traps Extracted . | . . . . . Installed . | . . . . . Triggered . | . . . . . Machines | -11 -10 -10 -8 -8 ---------- Run | Yrd Mat Sub Mat Gar Machines Disabled 1 | . . . . 1 Max in Single Turn 1 | . . . . 1 Garrison Relay 1 | . . . . 1 Machines Repaired . | . . . . . Machines Dismantled . | . . . . . Machines Sabotaged . | . . . . . Overloaded Fab Kills . | . . . . . Hacking | -11 -10 -10 -8 -8 --------- Run | Yrd Mat Sub Mat Gar Machines Accessed 5 | . . 2 1 2 Terminals 2 | . . . . 2 Fabricators . | . . . . . Repair Stations . | . . . . . Recycling Units . | . . . . . Scanalyzers . | . . . . . Garrison Access 1 | . . . 1 . Total Hacks 10 | . . 3 2 5 Successful 5 | . . 3 1 1 Failed 5 | . . . 1 4 Catastrophic 2 | . . . . 2 Database Lockouts . | . . . . . Manual . | . . . . . Terminals 5 | . . . . 5 Fabricators . | . . . . . Repair Stations . | . . . . . Recycling Units . | . . . . . Scanalyzers . | . . . . . Garrison Access 2 | . . . 2 . Terminal Hacks 4 | . . 3 . 1 Record 1 | . . 1 . . Open Door 2 | . . 1 . 1 Release Object 1 | . . 1 . . Fabricator Hacks . | . . . . . Repair Station Hacks . | . . . . . Recycling Unit Hacks . | . . . . . Scanalyzer . | . . . . . Garrison Access Hacks 1 | . . . 1 . Unlock Access 1 | . . . 1 . Unauthorized Hacks . | . . . . . Terminals . | . . . . . Fabricators . | . . . . . Repair Stations . | . . . . . Recycling Units . | . . . . . Scanalyzers . | . . . . . Garrison Access . | . . . . . Data Cores Recovered . | . . . . . Used . | . . . . . Hacking Detections 3 | . . . 1 2 Full Trace Events 1 | . . . . 1 Feedback Events . | . . . . . Feedback Blocked . | . . . . . Robot Schematics Acquired . | . . . . . Robots Built . | . . . . . Authchips . | . . . . . Time . | . . . . . Total Robot Build Rating . | . . . . . Part Schematics Acquired . | . . . . . Parts Built . | . . . . . Authchips . | . . . . . Time . | . . . . . Total Part Build Rating . | . . . . . Part Studies Acquired . | . . . . . Parts Repaired . | . . . . . Time . | . . . . . Parts Recycled . | . . . . . Recycled Matter . | . . . . . Retrieved Matter . | . . . . . Retrieved Components . | . . . . . Parts Scanalyzed . | . . . . . Part Schematics Acquired . | . . . . . Parts Damaged . | . . . . . Bothacking | -11 -10 -10 -8 -8 ------------ Run | Yrd Mat Sub Mat Gar Used RIF Installer . | . . . . . Robots Hacked . | . . . . . Non-combat . | . . . . . Combat . | . . . . . Robot Hacks Applied . | . . . . . Relay Couplers Released 3 | . . . . 3 Machine Destruction 3 | . . . . 3 Fabnet Peak Effective % . | . . . . . Robots Rewired 3 | . . . . 3 Allies Hacked . | . . . . . Hacks Repelled . | . . . . . Allies | -11 -10 -10 -8 -8 -------- Run | Yrd Mat Sub Mat Gar Total Allies 3 | . . . . 3 Largest Group 3 | . . . . 3 Highest-Rated Group 95 | . . . . 95 Highest-Rated Ally 39 | . . . . 39 Total Orders . | . . . . . Ally Attacks 37 | . . . . 37 Total Damage 664 | . . . . 664 Kills 6 | . . . . 6 Allies Corrupted . | . . . . . Allies Melted . | . . . . . Intel | -11 -10 -10 -8 -8 ------- Run | Yrd Mat Sub Mat Gar Active Infowar (turns) 1211 | 13 119 762 36 281 Terrain 1211 | 13 119 762 36 281 Robot Analysis Total . | . . . . . Derelict Logs Recovered 1 | . . 1 . . Drone Launches . | . . . . . Drone Recoveries . | . . . . . Exploration | -11 -10 -10 -8 -8 ------------- Run | Yrd Mat Sub Mat Gar Turns Passed 1369 | 100 119 762 36 352 Spaces Moved 836 | 45 14 506 34 237 Core 18 | 10 . . . 8 Treads 310 | 35 14 261 . . Legs . | . . . . . Wheels 508 | . . 245 34 229 Hover . | . . . . . Flight . | . . . . . Fastest Speed 50 | 50 160 110 95 50 Average Speed 123 | 136 160 135 95 98 Slowest Speed 350 | 160 160 160 95 350 Overloaded Moves . | . . . . . Propulsion Burnouts . | . . . . . Robots Hopped . | . . . . . Potential Cave-ins . | . . . . . Cave-ins Triggered . | . . . . . Exploration Rate (%) 16 | 4 5 34 6 33 Regions Visited 4 Branch Regions 1 Pre-discovered Areas 2 | . . 2 . . Known Exits Taken 1 | . . . 1 . Unknown Exits Taken 3 | 1 1 1 . . Scrap Searched 3 | . . 3 . . Spaces Dug . | . . . . . Terrain Destroyed . | . . . . . Melee . | . . . . . Projectile . | . . . . . AOE . | . . . . . Terrain Rammed . | . . . . . Walls Destroyed . | . . . . . Machines Disabled . | . . . . . Actions | -11 -10 -10 -8 -8 --------- Run | Yrd Mat Sub Mat Gar Total 1085 | 65 109 548 38 325 Wait 96 | . 95 1 . . Move 834 | 45 13 505 34 237 Hop . | . . . . . Pick Up 18 | 6 . 6 1 5 Fast Attach 12 | 7 . 1 . 4 Attach 6 | . . 2 2 2 Detach . | . . . . . Swap 2 | . . 1 . 1 Drop 11 | . . 4 1 6 Fire 56 | 7 1 27 . 21 Melee . | . . . . . Ram . | . . . . . Kick . | . . . . . Crush . | . . . . . Escape Stasis 19 | . . . . 19 Rewire 28 | . . . . 28 Trap . | . . . . . Miscellaneous 3 | . . 1 . 2 Route ------- -11/Scrapyard -10/Materials -10/Subcaves -8/Materials -8/Garrison History --------- Turn | Location | Event 12 | -11/Scrapyard | Discovered new exit (range 15) 101 | -11/Scrapyard | Entered Materials 200 | -10/Materials | Discovered new exit (range 7) 220 | -10/Materials | Entered Subcaves 317 | -10/Subcaves | Build established: Mutant 468 | -10/Subcaves | Released subatomizers from SUBCON Basin 660 | -10/Subcaves | Shifting Twisted Machinery released Flamer 663 | -10/Subcaves | Lost 3 parts (1p2w) 688 | -10/Subcaves | Core integrity fell below 50% 762 | -10/Subcaves | Learned location of Zion (-6) 762 | -10/Subcaves | Met a Zionite searching for "candidates" 802 | -10/Subcaves | Core integrity fell below 20% 857 | -10/Subcaves | Shifting Twisted Machinery released Riot Gun 935 | -10/Subcaves | Discovered new exit (range 11) 946 | -10/Subcaves | A swath of the cavern ceiling suddenly collapsed 949 | -10/Subcaves | Shifting Twisted Machinery released Scrap Shield 982 | -10/Subcaves | Entered Materials 982 | -8/Materials | Evolved 4 slots: Utility x3, Weapon x1 1018 | -8/Materials | Identified exit to Garrison 1018 | -8/Materials | Entered Garrison 1126 | -8/Garrison | Triggered checkpoint 1174 | -8/Garrison | P-60 Hacker assimilated allied T1-2V9(h) 1214 | -8/Garrison | Garrison Relay disabled 1228 | -8/Garrison | P-60 Hacker assimilated allied 33-S3T(l) 1342 | -8/Garrison | Triggered checkpoint 1355 | -8/Garrison | Core integrity fell below 50% 1370 | -8/Garrison | Self-destructed Last Messages --------------- 01354_ Stasis field depleted. 01354_ Triggered Stasis Trap. 01354_ A bubble of rippling energy engulfs the area. 01354_ Field strength at 94. 01355_ Field strength at 88. 01356_ Field strength at 82. 01357_ Field strength at 72. 01358_ Field strength at 66. 01359_ Field strength at 56. 01360_ Slug penetrates Reinforced Barrier. 01360_ Field strength at 50. 01361_ Field strength at 44. 01362_ Field strength at 38. 01363_ Field strength at 28. 01364_ Field strength at 22. 01365_ Field strength at 11. 01366_ Slug penetrates Reinforced Barrier. 01366_ Field strength at 1. 01366_ Stasis field depleted. Map ----- +----------------------------------------------------+ | ## #???????????????????????????????????????? | | ?# #???????????????????????????????????????? | | ###??# #???????????????????????????????????????? | | ?????# #???????????????????????????????????????? | | ?????# #???????????????????????????????????????? | | ?????# ########????????????????????????????????? | | ?????# #????????????????????????????????? | | ?????# ###### #????????????????????????????????? | | ?????# #????# #????????????????????????????????? | | ?????# #????# #????????????????????????????????? | | ?????# ###### ##############???????????????????? | | ?????# ??????????????????? | | ?????# ??????????????????? | | ?????# ??????????????????? | | ?????########## ##############???????????????????? | | ??????????????# #????????????????????????????????? | | ??????????????# #????????????????????????????????? | | ??????????????# ######???????????????????????????? | | ??????????????# ## #???????????????????????????? | | ??????????????# ## #######?????????????????????? | | ??????????????# !|g #?????????????????????? | | ??????????????##########" #?????????????????????? | | ???????????????????????#" #?????????????????????? | | ???????????????????????#" #?????????????????????? | | ???????????????????????#" #?????????????????????? | | ???????????????????????#"@ #?????????????????????? | | ???????????????????????#"""#?????????????????????? | | ???????????????????????#####?????????????????????? | | ?????????????????????????????????????????????????? | | ?????????????????????????????????????????????????? | | ?????????????????????????????????????????????????? | | ?????????????????????????????????????????????????? | | ?????????????????????????????????????????????????? | | ?????????????????????????????????????????????????? | | ?????????????????????????????????????????????????? | | ?????????????????????????????????????????????????? | | ?????????????????????????????????????????????????? | | ?????????????????????????????????????????????????? | | ?????????????????????????????????????????????????? | | ?????????????????????????????????????????????????? | | ?????????????????????????????????????????????????? | | ?????????????????????????????????????????????????? | | ?????????????????????????????????????????????????? | | | | | | | | | | | | | | | +----------------------------------------------------+ Best States ------------- Heat Dissipation 31 Energy Generation 18 Energy Capacity 160 Matter Stores 300 Matter Capacity 300 Sight Range 16 Terrain Scan Range 16 Terrain Scan Density 10 Armor Coverage 800 Evasion (%) 50 Recoil Reduction 2 Item Schematics ----------------- None Robot Schematics ------------------ None Fabricated ------------ Nothing Repaired ---------- Nothing Studied --------- None Alien Tech Used ----------------- None Achievements -------------- None Challenges ------------ None Game ------ Seed SubdwellerOvertunedUnit Manual? 0 Play Time 00:15:32 Cumulative 95.7 hours Start 2025.11.22 @ 16:41:25 End 2025.11.22 @ 16:55:44 Sessions 1 Manual Loads 0 Difficulty Rogue Special Mode None Game No. 136 Rogue 136 Adventurer 0 Explorer 0 Win Type - Total 1 Types 1/0/0/0/0/0/0/0/0/0 Lore% 57 Gallery% 53 Achievement% 39 Wizard Run 0 Options --------- Layout 2 ASCII 0 Keyboard 0 Movement Mouse Keybinds 0 Fullscreen 1 Font 16/SmallcapsGlow Map View 50x44 Zoom Use 0% Tactical HUD 1 Map Filters NONE Filters NONE Steam SD RUN: 8b2c610a-0daf-407a-8eb7-67a3fd9f8b8d